[Event "Czech Open-E Teams 2022"]
[Site "Pardubice"]
[Date "2022.07.14"]
[Round "1.20"]
[White "Vedral, Oldrich"]
[Black "Kovalsky, David"]
[Result "1-0"]
[ECO "B34"]
[WhiteElo "2268"]
[BlackElo "1831"]
[Annotator "ChessBase"]
[PlyCount "61"]
[EventDate "2022.07.14"]
[EventType "team-tourn"]
[EventCountry "CZE"]
[SourceTitle "playchess.com"]
[Source "ChessBase"]
[SourceQuality "1"]
[TimeControl "5400+30"]

1. e4 {[%emt 0:00:04]} c5 {[%emt 0:00:07]} 2. Nf3 {[%emt 0:00:04]} Nc6 {[%emt 0:00:34]} 3. d4 {[%emt 0:00:07]} cxd4 {[%emt 0:00:09]} 4. Nxd4 {[%emt 0:00:02]} Nf6 {[%emt 0:00:31]} 5. Nc3 {[%emt 0:00:16]} e5 {[%emt 0:00:39]} 6. Ndb5 {[%emt 0:00:10]} d6 {[%emt 0:01:00]} 7. Nd5 {[%emt 0:00:40]} Nxd5 {[%emt 0:00:18]} 8. exd5 {[%emt 0:00:02]} Nb8 {[%emt 0:00:09]} 9. c4 {[%emt 0:00:18]} a6 {[%emt 0:02:43]} 10. Nc3 {[%emt 0:00:11]} Be7 {[%emt 0:04:32]} 11. Be2 {[%emt 0:02:08]} Nd7 {[%emt 0:00:50]} 12. O-O {[%emt 0:00:56]} O-O {[%emt 0:06:54]} 13. Be3 {[%emt 0:02:08]} f5 {[%emt 0:01:30]} 14. f3 {[%emt 0:01:13]} f4 {[%emt 0:19:07]} 15. Bf2 {[%emt 0:02:09]} Qe8 {[%emt 0:02:31]} 16. b4 {[%emt 0:03:59]} Qh5 {[%emt 0:03:24]} 17. Ne4 {[%emt 0:03:00]} Nf6 {[%emt 0:04:19]} 18. Re1 {[%emt 0:11:36]} g5 {[%emt 0:00:29]} 19. h3 {[%emt 0:04:23]} Qg6 {[%emt 0:12:06]} 20. Nxf6+ {[%emt 0:07:40]} Rxf6 {[%emt 0:00:38]} 21. c5 {[%emt 0:00:15]} Bd7 {[%emt 0:12:53]} 22. Rc1 {[%emt 0:01:38]} Qe8 {[%emt 0:01:02]} 23. Bd3 {[%emt 0:05:31]} h5 {[%emt 0:01:44]} 24. c6 {[%emt 0:00:46]} bxc6 {[%emt 0:03:22]} 25. dxc6 {[%emt 0:00:31]} Be6 {[%emt 0:02:52]} 26. Bc4 {[%emt 0:02:38]} Qf7 {[%emt 0:01:47]} 27. Bxe6 {[%emt 0:02:01]} Qxe6 {[%emt 0:00:06]} 28. c7 {[%emt 0:05:09]} Rff8 {[%emt 0:08:05]} 29. Rc6 {[%emt 0:03:06]} Qxa2 {[%emt 0:01:13]} 30. Qd3 {[%emt 0:03:11]} Kg7 {[%emt 0:00:45]} 31. Rxe5 {[%emt 0:02:21]} 1-0

[Event "Czech Open-E Teams 2022"]
[Site "Pardubice"]
[Date "2022.07.14"]
[Round "1.21"]
[White "Vojta, Jakub"]
[Black "Goroshkov, Maksym"]
[Result "0-1"]
[ECO "A15"]
[WhiteElo "2326"]
[BlackElo "2240"]
[Annotator "ChessBase"]
[PlyCount "72"]
[EventDate "2022.07.14"]
[EventType "team-tourn"]
[EventCountry "CZE"]
[SourceTitle "playchess.com"]
[Source "ChessBase"]
[SourceQuality "1"]
[TimeControl "5400+30"]

1. c4 Nf6 {[%emt 0:00:00]} 2. g3 {[%emt 0:00:32]} g6 {[%emt 0:00:00]} 3. Bg2 {[%emt 0:00:14]} Bg7 {[%emt 0:00:00]} 4. Nc3 {[%emt 0:00:41]} O-O {[%emt 0:00:00]} 5. e4 {[%emt 0:00:12]} d6 {[%emt 0:00:45]} 6. Nge2 {[%emt 0:01:05]} c5 {[%emt 0:00:09]} 7. O-O {[%emt 0:00:10]} Nc6 {[%emt 0:00:06]} 8. d3 {[%emt 0:03:09]} Bd7 {[%emt 0:00:42]} 9. f4 {[%emt 0:00:15]} Qc8 {[%emt 0:09:10]} 10. Nd5 Bh3 {[%emt 0:03:53]} 11. Rb1 {[%emt 0:05:48]} Bxg2 {[%emt 0:00:25]} 12. Kxg2 {[%emt 0:00:05]} e6 {[%emt 0:01:28]} 13. Nxf6+ {[%emt 0:00:46]} Bxf6 {[%emt 0:00:07]} 14. Be3 {[%emt 0:00:03]} b6 {[%emt 0:03:02]} 15. Qd2 {[%emt 0:09:14]} Bg7 {[%emt 0:04:02]} 16. f5 {[%emt 0:12:23]} exf5 {[%emt 0:00:05]} 17. exf5 {[%emt 0:00:49]} Qb7 {[%emt 0:00:05]} 18. f6 {[%emt 0:16:46]} Ne5+ {[%emt 0:00:08]} 19. Kg1 {[%emt 0:00:56]} Rfe8 {[%emt 0:01:08]} 20. Nc3 {[%emt 0:09:16]} Nf3+ {[%emt 0:01:59]} 21. Rxf3 {[%emt 0:00:02]} Qxf3 {[%emt 0:00:10]} 22. Nd5 {[%emt 0:00:36]} Rxe3 {[%emt 0:01:37]} 23. Qxe3 {[%emt 0:08:24]} Qxe3+ {[%emt 0:00:08]} 24. Nxe3 {[%emt 0:00:04]} Bxf6 {[%emt 0:00:05]} 25. Nd5 {[%emt 0:00:04]} Bd4+ {[%emt 0:01:05]} 26. Kg2 {[%emt 0:00:01]} Re8 {[%emt 0:00:14]} 27. Kf3 {[%emt 0:00:16]} f5 {[%emt 0:01:06]} 28. h3 {[%emt 0:01:46]} Kf7 {[%emt 0:01:30]} 29. a4 {[%emt 0:01:22]} g5 {[%emt 0:01:18]} 30. g4 {[%emt 0:06:46]} Kg6 {[%emt 0:00:29]} 31. gxf5+ {[%emt 0:06:25]} Kxf5 {[%emt 0:00:09]} 32. b4 {[%emt 0:00:44]} cxb4 {[%emt 0:03:07]} 33. Rxb4 {[%emt 0:00:09]} h5 {[%emt 0:01:32]} 34. a5 {[%emt 0:01:59]} g4+ {[%emt 0:00:23]} 35. hxg4+ {[%emt 0:01:58]} hxg4+ {[%emt 0:00:05]} 36. Kg3 {[%emt 0:01:29]} Re2 {[%emt 0:00:46]} 0-1

[Event "Czech Open-E Teams 2022"]
[Site "Pardubice"]
[Date "2022.07.14"]
[Round "1.22"]
[White "Kovalskyi, Roman"]
[Black "Virostko, Petr"]
[Result "0-1"]
[ECO "B40"]
[WhiteElo "2056"]
[BlackElo "2326"]
[Annotator "ChessBase"]
[PlyCount "114"]
[EventDate "2022.07.14"]
[EventType "team-tourn"]
[EventCountry "CZE"]
[SourceTitle "playchess.com"]
[Source "ChessBase"]
[SourceQuality "1"]
[TimeControl "5400+30"]

1. e4 {[%emt 0:00:02]} c5 {[%emt 0:00:13]} 2. Nf3 {[%emt 0:00:24]} e6 {[%emt 0:00:06]} 3. g3 {[%emt 0:00:10]} Nc6 {[%emt 0:03:34]} 4. d3 {[%emt 0:01:14]} d5 {[%emt 0:02:33]} 5. Bg2 {[%emt 0:00:30]} dxe4 {[%emt 0:03:53]} 6. dxe4 {[%emt 0:00:08]} Qxd1+ {[%emt 0:00:51]} 7. Kxd1 {[%emt 0:00:05]} b6 {[%emt 0:04:33]} 8. Re1 {[%emt 0:04:31]} Ba6 {[%emt 0:07:22]} 9. b3 {[%emt 0:09:28]} Nf6 {[%emt 0:08:41]} 10. h3 {[%emt 0:02:28]} Rd8+ {[%emt 0:03:03]} 11. Nfd2 {[%emt 0:05:44]} c4 {[%emt 0:07:49]} 12. e5 {[%emt 0:26:44]} Nd5 {[%emt 0:01:07]} 13. bxc4 {[%emt 0:00:36]} Bxc4 {[%emt 0:02:19]} 14. Ba3 {[%emt 0:01:34]} b5 {[%emt 0:13:04]} 15. Bxf8 {[%emt 0:07:52]} Kxf8 {[%emt 0:00:35]} 16. Bxd5 {[%emt 0:01:38]} Bxd5 {[%emt 0:05:51]} 17. Nc3 {[%emt 0:00:59]} a6 {[%emt 0:01:25]} 18. Kc1 {[%emt 0:04:11]} Ke7 {[%emt 0:01:37]} 19. f4 {[%emt 0:01:41]} Bg2 {[%emt 0:02:04]} 20. h4 {[%emt 0:00:14]} Nd4 {[%emt 0:01:07]} 21. Kb2 {[%emt 0:02:20]} Rc8 {[%emt 0:02:09]} 22. Rac1 {[%emt 0:00:59]} f5 {[%emt 0:02:22]} 23. Nb3 {[%emt 0:05:44]} Rhd8 {[%emt 0:04:23]} 24. Red1 {[%emt 0:06:23]} Nc6 {[%emt 0:00:58]} 25. Nc5 {[%emt 0:05:10]} Nb8 {[%emt 0:01:04]} 26. Rxd8 {[%emt 0:07:59]} Rxd8 {[%emt 0:00:10]} 27. Rd1 {[%emt 0:01:17]} b4 {[%emt 0:03:10]} 28. Rxd8 {[%emt 0:02:16]} bxc3+ {[%emt 0:00:04]} 29. Kxc3 {[%emt 0:00:03]} Kxd8 {[%emt 0:00:05]} 30. Nxe6+ {[%emt 0:00:03]} Ke7 {[%emt 0:00:38]} 31. Nxg7 {[%emt 0:00:01]} Be4 {[%emt 0:00:16]} 32. Nh5 {[%emt 0:00:27]} Nd7 {[%emt 0:02:47]} 33. g4 {[%emt 0:03:08]} Bf3 {[%emt 0:07:30]} 34. Ng3 {[%emt 0:00:01]} Bxg4 {[%emt 0:00:14]} 35. Kb4 {[%emt 0:01:07]} Nf8 {[%emt 0:00:49]} 36. Ka5 {[%emt 0:00:37]} Ng6 {[%emt 0:00:25]} 37. Kxa6 {[%emt 0:00:05]} Nxf4 {[%emt 0:00:08]} 38. c4 {[%emt 0:00:57]} Nd3 {[%emt 0:00:59]} 39. Kb6 {[%emt 0:00:30]} Nxe5 {[%emt 0:04:01]} 40. c5 {[%emt 0:00:28]} f4 {[%emt 0:00:41]} 41. Ne4 {[%emt 0:00:11]} Bf3 {[%emt 0:01:16]} 42. Nf2 {[%emt 0:00:42]} Bc6 {[%emt 0:00:24]} 43. Kc7 {[%emt 0:00:40]} h5 {[%emt 0:00:49]} 44. a3 {[%emt 0:00:31]} f3 {[%emt 0:00:38]} 45. Nh3 {[%emt 0:00:05]} Ba4 {[%emt 0:01:10]} 46. Kb6 {[%emt 0:00:37]} Nc4+ {[%emt 0:01:25]} 47. Kb7 {[%emt 0:00:24]} Nxa3 {[%emt 0:00:28]} 48. c6 {[%emt 0:00:03]} Nc4 {[%emt 0:00:14]} 49. c7 {[%emt 0:00:51]} Nd6+ {[%emt 0:00:06]} 50. Kb6 {[%emt 0:01:02]} Bd7 {[%emt 0:00:52]} 51. Nf2 {[%emt 0:00:34]} Ke6 {[%emt 0:01:17]} 52. Kc5 {[%emt 0:00:06]} Nf5 {[%emt 0:00:18]} 53. Nd3 {[%emt 0:00:28]} Nxh4 {[%emt 0:01:32]} 54. Nf4+ {[%emt 0:00:04]} Ke5 {[%emt 0:00:20]} 55. Nxh5 {[%emt 0:00:05]} Nf5 {[%emt 0:00:10]} 56. Kb6 {[%emt 0:00:25]} f2 {[%emt 0:00:33]} 57. Kb7 {[%emt 0:00:03]} f1=Q {[%emt 0:00:16]} 0-1

[Event "Czech Open-E Teams 2022"]
[Site "Pardubice"]
[Date "2022.07.14"]
[Round "1.23"]
[White "Nytra, Ondrej"]
[Black "Garsky, Vladyslav"]
[Result "0-1"]
[ECO "B12"]
[WhiteElo "2214"]
[BlackElo "1884"]
[Annotator "ChessBase"]
[PlyCount "62"]
[EventDate "2022.07.14"]
[EventType "team-tourn"]
[EventCountry "CZE"]
[SourceTitle "playchess.com"]
[Source "ChessBase"]
[SourceQuality "1"]
[TimeControl "5400+30"]

1. e4 c6 {[%emt 0:00:00]} 2. d4 {[%emt 0:00:36]} d5 {[%emt 0:00:00]} 3. e5 {[%emt 0:00:13]} Bf5 {[%emt 0:00:00]} 4. h4 {[%emt 0:00:09]} h5 {[%emt 0:00:00]} 5. c4 {[%emt 0:00:50]} e6 {[%emt 0:00:00]} 6. Nc3 {[%emt 0:10:30]} Nd7 7. cxd5 {[%emt 0:00:00]} cxd5 {[%emt 0:17:08]} 8. Bg5 {[%emt 0:00:00]} f6 {[%emt 0:14:43]} 9. exf6 {[%emt 0:02:26]} gxf6 {[%emt 0:00:01]} 10. Bf4 {[%emt 0:00:17]} Qb6 {[%emt 0:00:01]} 11. Be2 {[%emt 0:00:41]} Qxb2 {[%emt 0:06:54]} 12. Bxh5+ {[%emt 0:11:33]} Kd8 {[%emt 0:00:01]} 13. Na4 {[%emt 0:03:04]} Bb4+ {[%emt 0:00:49]} 14. Kf1 {[%emt 0:00:22]} Qc2 {[%emt 0:00:02]} 15. Rc1 {[%emt 0:01:08]} Bd3+ {[%emt 0:01:04]} 16. Be2 {[%emt 0:03:44]} Qxd1+ {[%emt 0:00:13]} 17. Rxd1 {[%emt 0:00:10]} Bc2 {[%emt 0:00:04]} 18. Rh3 {[%emt 0:00:21]} Bxa4 {[%emt 0:00:58]} 19. Rb1 {[%emt 0:00:02]} Ba5 {[%emt 0:09:20]} 20. Ra3 {[%emt 0:00:58]} b5 {[%emt 0:00:13]} 21. Bxb5 {[%emt 0:00:02]} Bxb5+ {[%emt 0:00:07]} 22. Rxb5 {[%emt 0:00:04]} Bb6 {[%emt 0:00:09]} 23. Nf3 {[%emt 0:00:11]} Rc8 {[%emt 0:00:16]} 24. g4 Ne7 {[%emt 0:02:59]} 25. Kg2 {[%emt 0:00:26]} Rc2 {[%emt 0:01:04]} 26. Bg3 {[%emt 0:00:28]} Ke8 {[%emt 0:08:00]} 27. h5 {[%emt 0:01:09]} Re2 {[%emt 0:02:24]} 28. Kh3 {[%emt 0:00:54]} f5 {[%emt 0:01:04]} 29. Ne5 {[%emt 0:02:13]} fxg4+ {[%emt 0:02:23]} 30. Kxg4 {[%emt 0:00:04]} Re4+ {[%emt 0:06:47]} 31. Kf3 {[%emt 0:00:02]} Nxe5+ {[%emt 0:00:30]} 0-1

[Event "Czech Open-E Teams 2022"]
[Site "Pardubice"]
[Date "2022.07.14"]
[Round "1.24"]
[White "Goroshkova, Iryna"]
[Black "Jasny, Stanislav"]
[Result "0-1"]
[ECO "B56"]
[WhiteElo "1468"]
[BlackElo "2261"]
[Annotator "ChessBase"]
[PlyCount "54"]
[EventDate "2022.07.14"]
[EventType "team-tourn"]
[EventCountry "CZE"]
[SourceTitle "playchess.com"]
[Source "ChessBase"]
[SourceQuality "1"]
[TimeControl "5400+30"]

1. e4 {[%emt 0:00:02]} c5 {[%emt 0:00:07]} 2. Nf3 {[%emt 0:00:08]} Nc6 3. d4 {[%emt 0:01:17]} cxd4 {[%emt 0:00:20]} 4. Nxd4 {[%emt 0:00:06]} Nf6 {[%emt 0:00:14]} 5. Nc3 {[%emt 0:00:49]} d6 {[%emt 0:00:15]} 6. Bb5 {[%emt 0:03:11]} Bd7 {[%emt 0:00:19]} 7. O-O {[%emt 0:03:13]} g6 {[%emt 0:05:57]} 8. h3 {[%emt 0:02:43]} Bg7 {[%emt 0:00:28]} 9. Be3 {[%emt 0:03:59]} O-O {[%emt 0:00:13]} 10. Nxc6 {[%emt 0:02:22]} Bxc6 {[%emt 0:01:19]} 11. Bxc6 {[%emt 0:01:51]} bxc6 {[%emt 0:00:06]} 12. f3 {[%emt 0:01:12]} Qa5 {[%emt 0:09:27]} 13. Qd2 {[%emt 0:02:05]} Rfb8 {[%emt 0:02:07]} 14. Nd1 {[%emt 0:05:12]} Qxd2 {[%emt 0:01:30]} 15. Bxd2 {[%emt 0:00:07]} Nd7 {[%emt 0:00:38]} 16. c3 {[%emt 0:00:51]} a5 {[%emt 0:01:46]} 17. Rb1 {[%emt 0:07:31]} a4 {[%emt 0:01:42]} 18. Nf2 {[%emt 0:00:49]} Ne5 {[%emt 0:02:34]} 19. Rfd1 {[%emt 0:04:44]} Nc4 {[%emt 0:01:26]} 20. Be1 {[%emt 0:05:37]} Nxb2 {[%emt 0:02:40]} 21. Rdc1 {[%emt 0:04:20]} Bh6 {[%emt 0:00:13]} 22. Rc2 {[%emt 0:00:57]} Nc4 {[%emt 0:00:07]} 23. Rxb8+ {[%emt 0:01:11]} Rxb8 {[%emt 0:00:05]} 24. Ng4 {[%emt 0:01:43]} Bg7 {[%emt 0:04:14]} 25. Kf2 {[%emt 0:03:53]} Rb1 {[%emt 0:01:17]} 26. Ke2 {[%emt 0:00:20]} h5 {[%emt 0:01:42]} 27. Nf2 {[%emt 0:00:42]} Na3 {[%emt 0:01:00]} 0-1

[Event "Czech Open-E Teams 2022"]
[Site "Pardubice"]
[Date "2022.07.14"]
[Round "1.25"]
[White "Vanka, Miloslav"]
[Black "Cukrowski, Filip"]
[Result "1/2-1/2"]
[ECO "A45"]
[WhiteElo "2078"]
[BlackElo "2378"]
[Annotator "ChessBase"]
[PlyCount "81"]
[EventDate "2022.07.14"]
[EventType "team-tourn"]
[EventCountry "CZE"]
[SourceTitle "playchess.com"]
[Source "ChessBase"]
[SourceQuality "1"]
[TimeControl "5400+30"]

1. d4 {[%emt 0:00:36]} Nf6 {[%emt 0:00:08]} 2. Bg5 {[%emt 0:00:59]} d5 {[%emt 0:01:13]} 3. Bxf6 {[%emt 0:03:15]} exf6 {[%emt 0:00:02]} 4. e3 {[%emt 0:00:11]} Be6 {[%emt 0:00:30]} 5. Nd2 {[%emt 0:00:22]} c6 {[%emt 0:01:30]} 6. Bd3 {[%emt 0:01:06]} Bd6 {[%emt 0:00:57]} 7. Ne2 {[%emt 0:07:38]} Qc7 {[%emt 0:01:09]} 8. c3 {[%emt 0:04:00]} Nd7 {[%emt 0:00:29]} 9. Qc2 {[%emt 0:01:48]} g6 {[%emt 0:04:23]} 10. O-O-O {[%emt 0:08:39]} O-O-O {[%emt 0:02:05]} 11. Kb1 {[%emt 0:00:32]} f5 {[%emt 0:03:13]} 12. g3 {[%emt 0:06:12]} Nf6 {[%emt 0:00:29]} 13. Nf4 {[%emt 0:13:48]} g5 {[%emt 0:10:17]} 14. Nh3 {[%emt 0:02:00]} Ne4 {[%emt 0:11:36]} 15. f3 {[%emt 0:19:24]} g4 {[%emt 0:05:35]} 16. fxe4 {[%emt 0:13:47]} fxe4 {[%emt 0:00:08]} 17. Ng5 {[%emt 0:01:43]} exd3 {[%emt 0:01:31]} 18. Qxd3 {[%emt 0:00:01]} Qe7 {[%emt 0:05:15]} 19. Nxe6 {[%emt 0:00:19]} Qxe6 {[%emt 0:00:02]} 20. e4 {[%emt 0:00:23]} Qg6 {[%emt 0:06:36]} 21. Kc2 {[%emt 0:00:20]} dxe4 {[%emt 0:01:38]} 22. Nxe4 {[%emt 0:00:45]} Bc7 {[%emt 0:00:16]} 23. Rhf1 {[%emt 0:01:04]} Rde8 {[%emt 0:06:25]} 24. Rde1 {[%emt 0:00:11]} Re6 {[%emt 0:00:42]} 25. Nc5 {[%emt 0:00:44]} Rxe1 {[%emt 0:01:13]} 26. Rxe1 {[%emt 0:00:38]} Qxd3+ {[%emt 0:00:43]} 27. Nxd3 {[%emt 0:03:21]} Rf8 {[%emt 0:09:33]} 28. Kd2 {[%emt 0:01:42]} h5 {[%emt 0:03:46]} 29. Ke3 {[%emt 0:04:03]} h4 {[%emt 0:04:32]} 30. Kf2 {[%emt 0:00:22]} hxg3+ {[%emt 0:03:04]} 31. hxg3 {[%emt 0:00:02]} Rh8 {[%emt 0:00:49]} 32. Kg2 {[%emt 0:00:01]} Rh3 {[%emt 0:05:00]} 33. Re8+ {[%emt 0:00:59]} Kd7 {[%emt 0:03:43]} 34. Re3 {[%emt 0:00:02]} Rh8 {[%emt 0:01:30]} 35. Ne5+ {[%emt 0:02:14]} Bxe5 {[%emt 0:00:07]} 36. Rxe5 {[%emt 0:00:04]} Rg8 {[%emt 0:00:09]} 37. Kf2 {[%emt 0:00:19]} Rg6 {[%emt 0:00:08]} 38. Rf5 {[%emt 0:00:53]} Ke6 {[%emt 0:00:43]} 39. Re5+ {[%emt 0:00:28]} Kd6 {[%emt 0:00:51]} 40. Rf5 {[%emt 0:00:03]} Ke6 {[%emt 0:00:31]} 41. Re5+ {[%emt 0:00:01]} 1/2-1/2

[Event "Czech Open-E Teams 2022"]
[Site "Pardubice"]
[Date "2022.07.14"]
[Round "1.26"]
[White "Butkiewicz, Lukasz"]
[Black "Framberk, Jan"]
[Result "1-0"]
[ECO "A20"]
[WhiteElo "2370"]
[BlackElo "1942"]
[Annotator "ChessBase"]
[PlyCount "75"]
[EventDate "2022.07.14"]
[EventType "team-tourn"]
[EventCountry "CZE"]
[SourceTitle "playchess.com"]
[Source "ChessBase"]
[SourceQuality "1"]
[TimeControl "5400+30"]

1. c4 {[%emt 0:00:03]} e5 {[%emt 0:00:29]} 2. g3 {[%emt 0:00:07]} Nc6 {[%emt 0:00:31]} 3. Bg2 {[%emt 0:00:07]} f5 {[%emt 0:00:08]} 4. Nc3 {[%emt 0:00:19]} Nf6 {[%emt 0:00:23]} 5. d3 {[%emt 0:00:26]} Bb4 {[%emt 0:00:21]} 6. Bd2 {[%emt 0:01:06]} O-O {[%emt 0:04:11]} 7. e3 {[%emt 0:01:05]} d6 {[%emt 0:03:25]} 8. Nge2 {[%emt 0:00:38]} Qe8 {[%emt 0:01:36]} 9. Nd5 {[%emt 0:04:38]} Bxd2+ {[%emt 0:01:38]} 10. Qxd2 {[%emt 0:00:02]} Nxd5 {[%emt 0:08:49]} 11. cxd5 {[%emt 0:09:37]} Ne7 {[%emt 0:03:40]} 12. O-O {[%emt 0:00:28]} c5 {[%emt 0:01:00]} 13. b4 {[%emt 0:06:20]} b6 {[%emt 0:05:49]} 14. bxc5 {[%emt 0:00:05]} bxc5 {[%emt 0:00:13]} 15. Rab1 {[%emt 0:00:11]} Qh5 {[%emt 0:03:23]} 16. f4 {[%emt 0:02:55]} Ng6 {[%emt 0:07:56]} 17. Nc3 {[%emt 0:00:28]} Ba6 {[%emt 0:02:03]} 18. Rfd1 {[%emt 0:05:53]} exf4 {[%emt 0:04:19]} 19. exf4 {[%emt 0:00:15]} Rfe8 {[%emt 0:01:14]} 20. Rb3 {[%emt 0:01:08]} Rab8 {[%emt 0:13:41]} 21. Re1 {[%emt 0:05:00]} Nf8 {[%emt 0:03:28]} 22. Rxb8 {[%emt 0:07:40]} Rxb8 {[%emt 0:00:37]} 23. Re7 {[%emt 0:01:12]} Rb7 {[%emt 0:04:35]} 24. Rxb7 {[%emt 0:01:17]} Bxb7 {[%emt 0:00:01]} 25. Nb5 {[%emt 0:00:11]} Qg6 {[%emt 0:00:37]} 26. Nxa7 {[%emt 0:01:15]} Qf6 {[%emt 0:00:24]} 27. Nc6 {[%emt 0:01:21]} Qa1+ {[%emt 0:00:47]} 28. Kf2 {[%emt 0:00:27]} Bxc6 {[%emt 0:04:21]} 29. dxc6 {[%emt 0:00:06]} Qd4+ {[%emt 0:00:05]} 30. Qe3 {[%emt 0:02:01]} Qb2+ {[%emt 0:00:21]} 31. Qe2 {[%emt 0:00:34]} Qd4+ {[%emt 0:00:13]} 32. Kf1 {[%emt 0:00:14]} Qa1+ {[%emt 0:01:45]} 33. Qe1 {[%emt 0:00:06]} Qxa2 {[%emt 0:00:09]} 34. c7 {[%emt 0:00:13]} Qa6 {[%emt 0:00:27]} 35. Bd5+ {[%emt 0:00:37]} Kh8 {[%emt 0:00:07]} 36. Kg1 {[%emt 0:00:32]} Qxd3 {[%emt 0:02:34]} 37. c8=Q {[%emt 0:00:43]} Qd4+ {[%emt 0:00:19]} 38. Kf1 {[%emt 0:00:06]} 1-0

[Event "Czech Open-E Teams 2022"]
[Site "Pardubice"]
[Date "2022.07.14"]
[Round "1.27"]
[White "Sedlak, Ludek"]
[Black "Kulon, Klaudia"]
[Result "0-1"]
[ECO "B50"]
[WhiteElo "1893"]
[BlackElo "2286"]
[Annotator "ChessBase"]
[PlyCount "60"]
[EventDate "2022.07.14"]
[EventType "team-tourn"]
[EventCountry "CZE"]
[SourceTitle "playchess.com"]
[Source "ChessBase"]
[SourceQuality "1"]
[TimeControl "5400+30"]

1. e4 {[%emt 0:00:09]} c5 {[%emt 0:00:02]} 2. Nf3 {[%emt 0:00:21]} d6 {[%emt 0:00:02]} 3. d4 {[%emt 0:00:26]} cxd4 {[%emt 0:00:03]} 4. c3 {[%emt 0:00:27]} Nf6 {[%emt 0:01:10]} 5. e5 {[%emt 0:01:50]} dxe5 {[%emt 0:11:39]} 6. Nxe5 {[%emt 0:04:03]} e6 {[%emt 0:01:45]} 7. cxd4 {[%emt 0:04:28]} Nbd7 {[%emt 0:00:40]} 8. Nc3 {[%emt 0:06:57]} Bb4 {[%emt 0:09:22]} 9. Nd3 {[%emt 0:07:16]} Be7 {[%emt 0:02:15]} 10. Nf4 {[%emt 0:07:40]} O-O {[%emt 0:03:50]} 11. Bc4 {[%emt 0:04:26]} Nb6 {[%emt 0:05:16]} 12. Bb3 {[%emt 0:04:45]} Bd7 {[%emt 0:06:30]} 13. O-O {[%emt 0:00:49]} Bc6 {[%emt 0:03:23]} 14. Bxe6 {[%emt 0:06:18]} g5 {[%emt 0:11:32]} 15. Nh3 {[%emt 0:12:51]} fxe6 {[%emt 0:00:14]} 16. Nxg5 {[%emt 0:00:15]} Qd7 {[%emt 0:08:10]} 17. Re1 {[%emt 0:00:53]} Bd6 {[%emt 0:08:00]} 18. Nge4 {[%emt 0:11:47]} Bc7 {[%emt 0:06:55]} 19. Bh6 {[%emt 0:03:12]} Rf7 {[%emt 0:00:20]} 20. Qd2 {[%emt 0:00:53]} Kh8 {[%emt 0:02:26]} 21. Ng5 {[%emt 0:08:56]} Re7 {[%emt 0:01:04]} 22. Nge4 {[%emt 0:01:12]} Nxe4 {[%emt 0:03:17]} 23. Nxe4 {[%emt 0:00:14]} Nd5 {[%emt 0:02:01]} 24. g3 {[%emt 0:01:27]} e5 {[%emt 0:03:35]} 25. Bg5 {[%emt 0:00:46]} Rf7 {[%emt 0:00:37]} 26. Rac1 {[%emt 0:02:08]} Re8 {[%emt 0:02:10]} 27. Rc5 {[%emt 0:02:34]} Bb6 {[%emt 0:01:11]} 28. Rxd5 {[%emt 0:00:30]} Qxd5 {[%emt 0:00:09]} 29. dxe5 {[%emt 0:03:36]} Qxd2 {[%emt 0:00:18]} 30. Bxd2 {[%emt 0:00:30]} Bxe4 {[%emt 0:00:43]} 0-1

[Event "Czech Open-E Teams 2022"]
[Site "Pardubice"]
[Date "2022.07.14"]
[Round "1.28"]
[White "Mondrzycki, Bartlomiej"]
[Black "Halla, Jiri"]
[Result "1-0"]
[ECO "A21"]
[WhiteElo "2180"]
[BlackElo "1732"]
[Annotator "ChessBase"]
[PlyCount "35"]
[EventDate "2022.07.14"]
[EventType "team-tourn"]
[EventCountry "CZE"]
[SourceTitle "playchess.com"]
[Source "ChessBase"]
[SourceQuality "1"]
[TimeControl "5400+30"]

1. c4 {[%emt 0:00:03]} e5 {[%emt 0:00:34]} 2. Nc3 {[%emt 0:00:11]} Bc5 {[%emt 0:00:44]} 3. e3 {[%emt 0:00:26]} d6 {[%emt 0:01:09]} 4. d4 {[%emt 0:00:16]} Bb4 {[%emt 0:00:45]} 5. Qa4+ {[%emt 0:00:26]} Nc6 6. d5 Bxc3+ {[%emt 0:02:09]} 7. bxc3 {[%emt 0:00:34]} Bd7 {[%emt 0:01:08]} 8. dxc6 {[%emt 0:00:03]} Bxc6 {[%emt 0:00:14]} 9. Qc2 {[%emt 0:00:16]} Nf6 10. Nf3 Qd7 {[%emt 0:03:10]} 11. Ba3 {[%emt 0:01:47]} e4 {[%emt 0:05:05]} 12. Nd4 {[%emt 0:00:20]} Ba4 {[%emt 0:01:00]} 13. Qb2 {[%emt 0:00:53]} b6 {[%emt 0:02:31]} 14. Be2 {[%emt 0:03:09]} c5 15. Nb3 d5 {[%emt 0:06:49]} 16. cxd5 {[%emt 0:00:45]} Bb5 {[%emt 0:00:37]} 17. Nxc5 {[%emt 0:00:26]} Qxd5 18. Qxb5+ 1-0